Workbook

Sheet COPIA BUDGET
A1: Peru
C2: FIRST DRAFT BUDGET SUBMISSION
C4: PEI Peru
C5: YEAR 2014 - FIRST DRAFT SUBMISSION
C6: Column1 | D6: Column2 | E6: Column3 | F6: Column4 | G6: Column5 | H6: Column6 | I6: Column7 | K6: =IF(F6="PEI",I6," ") ->  | L6: =IF(F6="UNV",I6," ") -> 
C7: Project | D7: Activity | E7: Responsible Party (Implementing Agent) | F7: Donor Description | G7: Account Code | H7: Account Description | I7: Budget Amount (USD)
C8: (Poverty Environment Initiative Peru) | D8: Activity 1 - Fortalecimiento de capacidades institucionales del Ministerio del Ambiente a partir de la integración de las variables sociales, de pobreza y de género en el sistema de gestión de residuos sólidos del Perú. | F8: PEI | G8: 71505 | H8: UNV Volunteers | I8: 16121 | K8: 16121
F9: PEI | G9: 71300 | H9: Consultores Nacionales | I9: 5000 | K9: 5000
E10: MINAM | F10: PEI | G10: 71300 | H10: Consultores Nacionales | I10: 29500 | K10: 29500
E11: MINAM | F11: UNV | G11: 71300 | H11: Consultores Nacionales | I11: 2500 | L11: 2500
E12: MINAM | F12: UNV | G12: 74500 | H12: Misceláneos | I12: 2000 | L12: 2000
F13: UNV | H13: Sub-total | I13: 4500
F14: UNDP-UNEP PEI | H14: Sub-total | I14: 50621
D16: Activity 2 - Fortalecimiento de capacidades institucionales de la Municipalidad Provincial de Arequipa para mejorar la gestión integral de los residuos sólidos a partir de la incorporación de las variables sociales, de pobreza y de género en políticas, instrumentos y herramientas locales. | E16: UNDP | F16: PEI | G16: 71300 | H16: Consultores nacionales | I16: 15166.61251 | K16: =IF(F16="PEI",I16," ") -> 15166.61251 | L16: =IF(F16="UNV",I16," ") -> 
E17: UNDP | F17: UNV | G17: 71300 | H17: Consultores nacionales | I17: 6110.711718 | K17: =IF(F17="PEI",I17," ") ->  | L17: =IF(F17="UNV",I17," ") -> 6110.711718
E18: MPA | F18: PEI | G18: 71500 | H18: UNV | I18: 15000 | K18: =IF(F18="PEI",I18," ") -> 15000 | L18: =IF(F18="UNV",I18," ") -> 
E19: UNDP | F19: PEI | G19: 71600 | H19: Viajes | I19: 3058.962624 | K19: =IF(F19="PEI",I19," ") -> 3058.962624 | L19: =IF(F19="UNV",I19," ") -> 
E20: MPA | F20: UNV | G20: 71600 | H20: Viajes | I20: 1617.89 | L20: 1617.89
E21: MPA | F21: UNV | G21: 72200 | H21: Equipo y Mobiliario | I21: 1287.562904 | L21: 1287.562904
E22: MPA | F22: PEI | G22: 72400 | H22: Equipo AV y de Comunicaciones | I22: 1428.828181 | K22: 1428.828181
E23: MPA | F23: PEI | G23: 72500 | H23: Suministros | I23: 676.1710208 | K23: 676.1710208
E24: MPA | F24: UNV | G24: 72500 | H24: Suministros | I24: 2186.877146 | L24: 2186.877146
E25: MPA | F25: PEI | G25: 72800 | H25: Equipo de Tecnologia de Información | I25: 1276.060388 | K25: 1276.060388
E26: MPA | F26: PEI | G26: 74200 | H26: Costos de Prod. de Impresiones y A V | I26: 3532.366305 | K26: 3532.366305
E27: MPA | F27: UNV | G27: 74200 | H27: Costos de Prod. de Impresiones y A V | I27: 2855.145485 | L27: 2855.145485
E28: MPA | F28: UNV | G28: 74500 | H28: Gastos Miscelaneos | I28: 2477.814522 | L28: 2477.814522
F31: UNV | H31: Sub-total | I31: 16536.00178
F32: UNDP-UNEP PEI | H32: Sub-total | I32: 40139.00103
K33: =IF(F33="PEI",I33," ") ->  | L33: =IF(F33="UNV",I33," ") ->  | M33: =SUM(K16:K32) -> 40139.00103 | N33: =SUM(L16:L32) -> 16536.00178 | O33: =M33+N33 -> 56675.0028 | P33: =#REF! -> 
D34: Activity 3 - Fortalecer asociaciones de recicladores pro-pobres y establecer un entorno favorable hacia una sostenibilidad financiera a largo plazo, mejorando sus capacidades operativas y de negociación, y facilitar el acceso a créditos, mercados e innovación en el valor agregado de sus productos. | E34: UNDP | F34: PEI | G34: 71300 | H34: Consultores nacionales | I34: 12938 | K34: =IF(F34="PEI",I34," ") -> 12938 | L34: =IF(F34="UNV",I34," ") -> 
E35: UNDP | F35: UNV | G35: 71300 | H35: Consultores nacionales | I35: 1283.608914 | K35: =IF(F35="PEI",I35," ") ->  | L35: =IF(F35="UNV",I35," ") -> 1283.608914
E36: MPA | F36: PEI | G36: 71500 | H36: UNV | I36: 15000 | K36: =IF(F36="PEI",I36," ") -> 15000 | L36: =IF(F36="UNV",I36," ") -> 
E37: MPA | F37: PEI | G37: 71600 | H37: Viajes | I37: 359.4536305 | K37: 359.4536305
E38: MPA | F38: UNV | G38: 72200 | H38: Equipo y Mobiliario | I38: 1025 | L38: 1025
E39: MPA | F39: PEI | G39: 72400 | H39: Equipo AV y de Comunicaciones | I39: 33.50107836 | K39: 33.50107836
E40: MPA | F40: PEI | G40: 72500 | H40: Suministros | I40: 44.93170381 | K40: 44.93170381
E41: MPA | F41: PEI | G41: 72800 | H41: Equipo de Tecnologia de Información | I41: 136.5923796 | K41: 136.5923796
E42: MPA | F42: PEI | G42: 73100 | H42: Instalaciones - Renta y Mantenimiento | I42: 107.8360891 | K42: 107.8360891
E43: MPA | F43: PEI | G43: 74200 | H43: Costos de Prod. de Impresiones y A V | I43: 404.3853343 | K43: 404.3853343
E44: MPA | F44: UNV | G44: 74200 | H44: Costos de Prod. de Impresiones y A V | I44: 440.3306973 | L44: 440.3306973
E45: MPA | F45: PEI | G45: 74500 | H45: Gastos Miscelaneos | I45: 2308.300654 | K45: 2308.300654
E46: MPA | F46: UNV | G46: 74500 | H46: Gastos Miscelaneos | I46: 7120.064256 | L46: 7120.064256
F47: UNV | H47: Sub-total | I47: 9869.003868 | K47: =IF(F47="PEI",I47," ") ->  | M47: =SUM(K34:K45) -> 31333.00087 | N47: =SUM(L34:L46) -> 9869.003868 | O47: =M47+N47 -> 41202.00474 | P47: =#REF! -> 
F48: UNDP-UNEP PEI | H48: Sub-total | I48: 31333.00087 | L48: =IF(F48="UNV",I48," ") -> 
D50: Activity 4 - Movilización de la sociedad peruana a través de voluntariado para cambiar la actitud publica y el comportamiento hacia los residuos sólidos | E50: UNDP | F50: UNV | G50: 71300 | H50: Consultores nacionales | I50: 14016.36089 | L50: 14016.36089
E51: MPA | F51: UNV | G51: 71400 | H51: Contratos de servicios . Individuales | I51: 700.9345794 | L51: 700.9345794
E52: UNDP | F52: PEI | G52: 71500 | H52: UNV | I52: 15000 | K52: 15000
E53: MPA | F53: UNV | G53: 71500 | H53: UNV | I53: 15000 | L53: 15000
E54: MPA | F54: UNV | G54: 71600 | H54: Viajes | I54: 2000.503235 | L54: 2000.503235
E55: MPA | F55: UNV | G55: 72200 | H55: Equipo y Mobiliario | I55: 1617.541337 | L55: 1617.541337
E56: MPA | F56: UNV | G56: 72400 | H56: Equipo AV y de Comunicaciones | I56: 246.9446441 | L56: 246.9446441
E57: MPA | F57: UNV | G57: 72500 | H57: Suministros | I57: 186.9158879 | L57: 186.9158879
E58: MPA | F58: UNV | G58: 72800 | H58: Equipo de Tecnologia de Información | I58: 419.1229331 | L58: 419.1229331
E59: MPA | F59: PEI | G59: 74200 | H59: Costos de Prod. de Impresiones y A V | I59: 1025 | K59: 1025
F60: UNV | G60: 74200 | H60: Costos de Prod. de Impresiones y A V | I60: 12720.73154 | L60: 12720.73154
F61: UNV | G61: 74500 | H61: Gastos Miscelaneos | I61: 11090.94177 | L61: 11090.94177
F62: UNV | H62: Sub-total | I62: 57999.99682 | K62: =IF(F53="PEI",I53," ") ->  | M62: =SUM(K48:K61) -> 16025 | N62: =SUM(L48:L61) -> 57999.99682 | O62: =M62+N62 -> 74024.99682 | P62: =#REF! -> 
F63: UNDP-UNEP PEI | H63: Sub-total | I63: 16025
D65: Activity 5 - Gestión de conocimientos | E65: UNDP | F65: PEI | G65: 71505 | H65: UNV Volunteers | I65: 16025 | K65: 16025
E66: MINAM | F66: PEI | G66: 71300 | H66: Consultores Nacionales | I66: 7000 | K66: 7000
E67: MINAM | F67: UNV | G67: 71300 | H67: Consultores Nacionales | I67: 3000 | L67: 3000
E68: MINAM | F68: UNV | G68: 74500 | H68: Misceláneos | I68: 6000 | L68: 6000
D69: Activity 5.1 Gestion de proyecto | E69: UNDP | F69: PEI | G69: 71300 | H69: Consultores nacionales-soporte técnico PNUD | I69: 20436 | K69: 20436
E70: UNDP | F70: PEI | G70: 71600 | H70: Viajes | I70: 3000 | K70: =IF(F70="PEI",I70," ") -> 3000 | P70: =#REF! -> 
E71: UNDP | F71: UNV | G71: 72100 | H71: Consultor nacional – Capacitación VNU | I71: 2000 | L71: 2000
E72: UNDP | F72: UNV | G72: 72500 | H72: Útiles de Oficina | I72: 1000 | L72: 1000
E73: UNDP | F73: PEI | G73: 74100 | H73: Auditoría | I73: 1500 | K73: 1500
E74: UNDP | F74: PEI | G74: 74500 | H74: Misceláneos | I74: 2367 | K74: 2367
E75: UNDP | F75: UNV | G75: 74500 | H75: Misceláneos | I75: 1000 | L75: 1000
E76: UNDP | F76: UNV | G76: 73500 | H76: Reembolso al PNUD para apoyo a servicios | I76: 5095 | L76: 5095
E77: UNDP | F77: PEI | G77: 73500 | H77: Reembolso al PNUD para apoyo a servicios | I77: 11554 | K77: 11554
F78: UNV | H78: Sub-total | I78: 18095
F79: UNDP-UNEP PEI | H79: Sub-total | I79: 61882 | K79: =IF(F70="PEI",I70," ") -> 3000 | M79: =SUM(K65:K78) -> 61882 | N79: =SUM(L65:L78) -> 18095 | O79: =M79+N79 -> 79977 | P79: =#REF! -> 
H81: UNV | I81: =I78+I62+I47+I31+I13 -> 107000.0025 | K81: =SUM(K8:K78) -> 200000.0019 | L81: =SUM(L8:L78) -> 107000.0025 | M81: =SUM(M8:M78) -> 87497.0019 | N81: =SUM(N8:N78) -> 84405.00246 | O81: =SUM(O8:O78) -> 171902.0044
H82: UNDP-UNEP PEI | I82: =I79+I63+I48+I32+I14 -> 200000.0019 | K82: =IF(F82="PEI",I82," ") ->  | L82: =IF(F82="UNV",I82," ") -> 
I83: =I81+I82 -> 307000.0044
I85: =I78+I62+I47+I31+I13 -> 107000.0025
I86: =I79+I63+I48+I32+I14 -> 200000.0019
K91: =SUM(#REF!) ->  | L91: =SUM(#REF!) -> 
L93: =L91+K91 -> 
